[Event "*** Titled Tuesday Blitz"]
[Site "Chess.com"]
[Date "2018.01.02"]
[Round "2"]
[White "manubibi"]
[Black "LawrenceTrent"]
[Result "0-1"]
[WhiteElo "2439"]
[BlackElo "2389"]
[TimeControl "180+2"]
[EndTime "13:22:58 PST"]
[Termination "LawrenceTrent won by resignation"]

1. e4 {[%clk 0:03:01.9]} 1... e5 {[%clk 0:03:00.4]} 2. Nf3 {[%clk 0:03:01.9]}
2... Nc6 {[%clk 0:03:01.8]} 3. Bb5 {[%clk 0:03:01.8]} 3... a6 {[%clk 0:03:02.8]}
4. Ba4 {[%clk 0:03:02.4]} 4... Nf6 {[%clk 0:03:04.1]} 5. O-O {[%clk 0:03:03.1]}
5... Bc5 {[%clk 0:03:05.4]} 6. Nxe5 {[%clk 0:02:57.3]} 6... Nxe5 {[%clk
0:03:03.7]} 7. d4 {[%clk 0:02:58.2]} 7... Nxe4 {[%clk 0:02:47.8]} 8. dxc5 {[%clk
0:02:30.9]} 8... Nxc5 {[%clk 0:02:25.7]} 9. Re1 {[%clk 0:01:55.8]} 9... O-O
{[%clk 0:02:19.6]} 10. Rxe5 {[%clk 0:01:21.7]} 10... Nxa4 {[%clk 0:02:20.5]} 11.
Qg4 {[%clk 0:01:22.8]} 11... d6 {[%clk 0:02:14]} 12. Qxa4 {[%clk 0:01:16.1]}
12... dxe5 {[%clk 0:02:14.5]} 13. Nc3 {[%clk 0:01:17.7]} 13... Bd7 {[%clk
0:02:10]} 14. Qe4 {[%clk 0:01:13.6]} 14... Bc6 {[%clk 0:02:10.9]} 15. Qc4 {[%clk
0:01:08.8]} 15... Qd4 {[%clk 0:02:08.9]} 16. Qe2 {[%clk 0:01:09.6]} 16... Rad8
{[%clk 0:02:01.6]} 17. Be3 {[%clk 0:01:10.5]} 17... Qb4 {[%clk 0:02:02.7]} 18.
Rb1 {[%clk 0:01:05]} 18... Rfe8 {[%clk 0:01:59.3]} 19. a3 {[%clk 0:01:05.2]}
19... Qe7 {[%clk 0:01:58.3]} 20. f3 {[%clk 0:01:01.2]} 20... Qe6 {[%clk
0:01:57.2]} 21. Re1 {[%clk 0:00:56.3]} 21... Qg6 {[%clk 0:01:56.9]} 22. Qf2
{[%clk 0:00:52.2]} 22... f6 {[%clk 0:01:57.1]} 23. h4 {[%clk 0:00:52.9]} 23...
h5 {[%clk 0:01:57]} 24. b4 {[%clk 0:00:50.5]} 24... Rd7 {[%clk 0:01:57.1]} 25.
a4 {[%clk 0:00:51.2]} 25... b6 {[%clk 0:01:55.4]} 26. a5 {[%clk 0:00:35.8]}
26... bxa5 {[%clk 0:01:52.1]} 27. bxa5 {[%clk 0:00:37.7]} 27... Rb8 {[%clk
0:01:52.8]} 28. Kh2 {[%clk 0:00:38.7]} 28... Rb2 {[%clk 0:01:47]} 29. Re2 {[%clk
0:00:38.9]} 29... Bb5 {[%clk 0:01:45.1]} 30. Ne4 {[%clk 0:00:22.5]} 30... Rd1
{[%clk 0:01:25.8]} 31. Rd2 {[%clk 0:00:21.4]} 31... Rf1 {[%clk 0:01:14.6]} 32.
Rd8+ {[%clk 0:00:21.6]} 32... Kh7 {[%clk 0:01:14.6]} 33. Qd2 {[%clk 0:00:23.1]}
33... Rbb1 {[%clk 0:01:10.9]} 34. Ng3 {[%clk 0:00:21.6]} 34... Rfd1 {[%clk
0:01:08.3]} 35. Qxd1 {[%clk 0:00:21.6]} 35... Rxd1 {[%clk 0:01:09.3]} 36. Rxd1
{[%clk 0:00:23]} 36... Qxc2 {[%clk 0:01:05.4]} 37. Rc1 {[%clk 0:00:23.2]} 37...
Qb3 {[%clk 0:01:01.3]} 38. Bf2 {[%clk 0:00:22.1]} 38... c6 {[%clk 0:00:56]} 39.
Nxh5 {[%clk 0:00:23]} 39... Qa2 {[%clk 0:00:57.3]} 40. Bb6 {[%clk 0:00:23]}
40... Qe6 {[%clk 0:00:50.8]} 41. Kg1 {[%clk 0:00:22.4]} 41... e4 {[%clk
0:00:51.4]} 42. Re1 {[%clk 0:00:22.4]} 42... Qf7 {[%clk 0:00:44.9]} 43. Ng3
{[%clk 0:00:15.9]} 43... exf3 {[%clk 0:00:46]} 44. gxf3 {[%clk 0:00:17.8]} 44...
Bc4 {[%clk 0:00:46]} 45. h5 {[%clk 0:00:17.9]} 45... Bd5 {[%clk 0:00:45.8]} 46.
Kf2 {[%clk 0:00:18.9]} 46... Qd7 {[%clk 0:00:44.3]} 47. Kg2 {[%clk 0:00:17.6]}
47... c5 {[%clk 0:00:43.8]} 48. Bxc5 {[%clk 0:00:16.2]} 48... Qc6 {[%clk
0:00:44.5]} 49. Bb6 {[%clk 0:00:16.5]} 49... Bxf3+ {[%clk 0:00:45.5]} 50. Kh2
{[%clk 0:00:18.1]} 50... Qc2+ {[%clk 0:00:44.6]} 51. Kh3 {[%clk 0:00:12.1]}
51... Qg2+ {[%clk 0:00:45.3]} 0-1

[Event "*** Titled Tuesday Blitz"]
[Site "Chess.com"]
[Date "2018.01.02"]
[Round "2"]
[White "capatl"]
[Black "ChessicallyInclined"]
[Result "1-0"]
[WhiteElo "2378"]
[BlackElo "2223"]
[TimeControl "180+2"]
[EndTime "13:23:00 PST"]
[Termination "capatl won by resignation"]

1. c4 {[%clk 0:03:01.9]} 1... e5 {[%clk 0:02:57.9]} 2. Nc3 {[%clk 0:03:02.5]}
2... Bb4 {[%clk 0:02:57.5]} 3. e3 {[%clk 0:03:00.1]} 3... Nf6 {[%clk 0:02:54.3]}
4. Nge2 {[%clk 0:03:00.7]} 4... O-O {[%clk 0:02:43.6]} 5. a3 {[%clk 0:03:00.3]}
5... Bxc3 {[%clk 0:02:36.2]} 6. Nxc3 {[%clk 0:03:02.2]} 6... c6 {[%clk
0:02:34.3]} 7. d4 {[%clk 0:03:02.6]} 7... exd4 {[%clk 0:02:35]} 8. Qxd4 {[%clk
0:03:03.1]} 8... d5 {[%clk 0:02:29.8]} 9. b4 {[%clk 0:02:50.7]} 9... dxc4 {[%clk
0:02:29.2]} 10. Qxd8 {[%clk 0:02:47.4]} 10... Rxd8 {[%clk 0:02:26.6]} 11. Bxc4
{[%clk 0:02:49.3]} 11... Nbd7 {[%clk 0:02:25.8]} 12. O-O {[%clk 0:02:41.1]}
12... Ne5 {[%clk 0:02:25.4]} 13. Be2 {[%clk 0:02:40.9]} 13... Bf5 {[%clk
0:02:19.5]} 14. f3 {[%clk 0:02:07.9]} 14... Bd3 {[%clk 0:02:11.1]} 15. e4 {[%clk
0:02:08.5]} 15... Bxe2 {[%clk 0:02:11.1]} 16. Nxe2 {[%clk 0:02:10.1]} 16... Nc4
{[%clk 0:01:59.4]} 17. Bg5 {[%clk 0:02:08.4]} 17... Rd3 {[%clk 0:01:52.8]} 18.
a4 {[%clk 0:01:25.4]} 18... h6 {[%clk 0:01:08.8]} 19. Bxf6 {[%clk 0:01:22.6]}
19... gxf6 {[%clk 0:01:09.3]} 20. Nf4 {[%clk 0:01:19.7]} 20... Rd2 {[%clk
0:01:03.6]} 21. Nh5 {[%clk 0:01:20.5]} 21... Rad8 {[%clk 0:00:52.8]} 22. Nxf6+
{[%clk 0:01:14.2]} 22... Kg7 {[%clk 0:00:53.7]} 23. Nh5+ {[%clk 0:01:15]} 23...
Kf8 {[%clk 0:00:54.4]} 24. Nf4 {[%clk 0:01:02.4]} 24... Ne3 {[%clk 0:00:38.3]}
25. Rfc1 {[%clk 0:01:00]} 25... Nc2 {[%clk 0:00:19.6]} 26. Rab1 {[%clk
0:00:56.3]} 26... R8d4 {[%clk 0:00:17.4]} 27. Rb2 {[%clk 0:00:50.9]} 27... Ne3
{[%clk 0:00:17.4]} 28. Rxd2 {[%clk 0:00:50.6]} 28... Rxd2 {[%clk 0:00:18.9]} 29.
b5 {[%clk 0:00:51.8]} 29... cxb5 {[%clk 0:00:19.4]} 30. axb5 {[%clk 0:00:53.7]}
30... a5 {[%clk 0:00:11.7]} 31. Rc8+ {[%clk 0:00:53.9]} 31... Kg7 {[%clk
0:00:12.2]} 32. Rc7 {[%clk 0:00:55]} 32... a4 {[%clk 0:00:12.8]} 33. Rxb7 {[%clk
0:00:56]} 33... a3 {[%clk 0:00:13.8]} 34. Ra7 {[%clk 0:00:23.5]} 34... a2 {[%clk
0:00:14.8]} 35. b6 {[%clk 0:00:17.1]} 35... Rd1+ {[%clk 0:00:07.1]} 36. Kf2
{[%clk 0:00:17.8]} 36... Nxg2 {[%clk 0:00:07.2]} 37. Kxg2 {[%clk 0:00:15.8]}
37... a1=Q {[%clk 0:00:07.7]} 38. Rxa1 {[%clk 0:00:16.4]} 38... Rxa1 {[%clk
0:00:09.6]} 39. Nd5 {[%clk 0:00:17.9]} 39... Rb1 {[%clk 0:00:10.8]} 40. Kg3
{[%clk 0:00:19.2]} 40... Kg6 {[%clk 0:00:09.4]} 41. Kf4 {[%clk 0:00:20.4]} 41...
f6 {[%clk 0:00:08.1]} 42. h4 {[%clk 0:00:20.8]} 42... h5 {[%clk 0:00:08.8]} 43.
Ke3 {[%clk 0:00:21.3]} 43... Rb3+ {[%clk 0:00:07.5]} 44. Kd4 {[%clk 0:00:22]}
44... Rxf3 {[%clk 0:00:07.4]} 45. Kc4 {[%clk 0:00:22.5]} 45... Rf1 {[%clk
0:00:07.6]} 46. b7 {[%clk 0:00:23.7]} 46... Rb1 {[%clk 0:00:07.9]} 47. Nb4
{[%clk 0:00:24.2]} 47... Rc1+ {[%clk 0:00:09.4]} 48. Kb5 {[%clk 0:00:25.5]} 1-0

[Event "*** Titled Tuesday Blitz"]
[Site "Chess.com"]
[Date "2018.01.02"]
[Round "2"]
[White "arna"]
[Black "guillembaches"]
[Result "0-1"]
[WhiteElo "2110"]
[BlackElo "2215"]
[TimeControl "180+2"]
[EndTime "13:23:02 PST"]
[Termination "guillembaches won on time"]

1. e4 {[%clk 0:03:01.9]} 1... c5 {[%clk 0:03:00.5]} 2. Nf3 {[%clk 0:03:01.8]}
2... d6 {[%clk 0:03:01.7]} 3. Bb5+ {[%clk 0:03:01.4]} 3... Nd7 {[%clk
0:03:02.2]} 4. O-O {[%clk 0:03:01.7]} 4... a6 {[%clk 0:03:03.3]} 5. Bd3 {[%clk
0:02:53.6]} 5... Ngf6 {[%clk 0:03:01.2]} 6. c3 {[%clk 0:02:53.8]} 6... b5 {[%clk
0:03:00.9]} 7. Bc2 {[%clk 0:02:53.2]} 7... Bb7 {[%clk 0:03:01.5]} 8. Re1 {[%clk
0:02:53.5]} 8... e6 {[%clk 0:03:01.8]} 9. d4 {[%clk 0:02:51.3]} 9... cxd4 {[%clk
0:03:02.6]} 10. cxd4 {[%clk 0:02:52.1]} 10... Be7 {[%clk 0:03:02.2]} 11. e5
{[%clk 0:02:34.8]} 11... Nd5 {[%clk 0:03:00.4]} 12. Nc3 {[%clk 0:02:30.6]} 12...
Nxc3 {[%clk 0:02:49.3]} 13. bxc3 {[%clk 0:02:32.5]} 13... Rc8 {[%clk 0:02:46.4]}
14. exd6 {[%clk 0:02:22.3]} 14... Bxd6 {[%clk 0:02:45.8]} 15. Qd3 {[%clk
0:02:17.9]} 15... Qc7 {[%clk 0:02:33.5]} 16. d5 {[%clk 0:01:33.1]} 16... e5
{[%clk 0:02:19.4]} 17. Bd2 {[%clk 0:01:20.3]} 17... Qc4 {[%clk 0:02:12.3]} 18.
Qxc4 {[%clk 0:00:55.1]} 18... Rxc4 {[%clk 0:02:06.7]} 19. Bb3 {[%clk 0:00:50.7]}
19... Rc5 {[%clk 0:01:51.7]} 20. Be3 {[%clk 0:00:36.7]} 20... Rxc3 {[%clk
0:01:48.8]} 21. Bd4 {[%clk 0:00:37.6]} 21... Rc8 {[%clk 0:01:33.4]} 22. Nxe5
{[%clk 0:00:38.4]} 22... Nxe5 {[%clk 0:01:30.1]} 23. Bxe5 {[%clk 0:00:40.3]}
23... Kd7 {[%clk 0:01:24.9]} 24. Bxg7 {[%clk 0:00:33.7]} 24... Rhg8 {[%clk
0:01:25.2]} 25. Bd4 {[%clk 0:00:33.8]} 25... Rg4 {[%clk 0:01:16.9]} 26. Be3
{[%clk 0:00:21.4]} 26... h5 {[%clk 0:01:15.1]} 27. Bd1 {[%clk 0:00:14.7]} 27...
Rg7 {[%clk 0:01:08.6]} 28. Bf3 {[%clk 0:00:07.5]} 28... h4 {[%clk 0:01:06.9]}
29. g3 {[%clk 0:00:07.7]} 29... hxg3 {[%clk 0:01:05.7]} 30. hxg3 {[%clk
0:00:07.6]} 30... Rcg8 {[%clk 0:01:03.2]} 31. Kg2 {[%clk 0:00:07.6]} 31... f5
{[%clk 0:00:58.5]} 32. Bd4 {[%clk 0:00:06.5]} 32... Rg6 {[%clk 0:00:55.3]} 33.
Re6 {[%clk 0:00:05]} 33... Rxg3+ {[%clk 0:00:51]} 34. fxg3 {[%clk 0:00:05]}
34... Rxg3+ {[%clk 0:00:52.1]} 35. Kf2 {[%clk 0:00:05.2]} 35... Rxf3+ {[%clk
0:00:53]} 36. Kxf3 {[%clk 0:00:03.8]} 36... Bxd5+ {[%clk 0:00:54]} 37. Ke3
{[%clk 0:00:04.1]} 37... Kxe6 {[%clk 0:00:53.5]} 38. a4 {[%clk 0:00:03.4]} 38...
b4 {[%clk 0:00:50.2]} 39. a5 {[%clk 0:00:03.1]} 39... b3 {[%clk 0:00:44.1]} 40.
Rb1 {[%clk 0:00:03.3]} 40... f4+ {[%clk 0:00:40.1]} 41. Kd3 {[%clk 0:00:03.2]}
41... Kf5 {[%clk 0:00:41.3]} 42. Kc3 {[%clk 0:00:04]} 42... f3 {[%clk
0:00:40.2]} 43. Rd1 {[%clk 0:00:03.3]} 43... Ke4 {[%clk 0:00:29.7]} 44. Bb6
{[%clk 0:00:03.8]} 44... Be5+ {[%clk 0:00:30.3]} 45. Kb4 {[%clk 0:00:03.3]}
45... b2 {[%clk 0:00:29.8]} 46. Re1+ {[%clk 0:00:03.3]} 46... Kf5 {[%clk
0:00:28.7]} 0-1

[Event "*** Titled Tuesday Blitz"]
[Site "Chess.com"]
[Date "2018.01.02"]
[Round "2"]
[White "Summer-Paradise"]
[Black "AkshatChandra"]
[Result "0-1"]
[WhiteElo "2530"]
[BlackElo "2676"]
[TimeControl "180+2"]
[EndTime "13:23:11 PST"]
[Termination "AkshatChandra won by resignation"]

1. d4 {[%clk 0:03:01.9]} 1... Nf6 {[%clk 0:03:00.4]} 2. c4 {[%clk 0:03:02.9]}
2... e6 {[%clk 0:03:01.3]} 3. Nf3 {[%clk 0:03:04.5]} 3... d5 {[%clk 0:03:02.3]}
4. Nc3 {[%clk 0:03:05.8]} 4... Bb4 {[%clk 0:03:01.2]} 5. Qa4+ {[%clk 0:03:06.6]}
5... Nc6 {[%clk 0:03:02]} 6. Bg5 {[%clk 0:03:07.8]} 6... h6 {[%clk 0:02:57.1]}
7. Bxf6 {[%clk 0:03:08.8]} 7... Qxf6 {[%clk 0:02:59]} 8. cxd5 {[%clk 0:03:10.7]}
8... exd5 {[%clk 0:02:55.5]} 9. e3 {[%clk 0:03:12.1]} 9... O-O {[%clk 0:02:55]}
10. Be2 {[%clk 0:03:13.2]} 10... Be6 {[%clk 0:02:50.2]} 11. O-O {[%clk
0:03:13.9]} 11... a6 {[%clk 0:02:51.4]} 12. Rfc1 {[%clk 0:03:15.3]} 12... Bd6
{[%clk 0:02:51.4]} 13. Qd1 {[%clk 0:03:16.7]} 13... Rad8 {[%clk 0:02:47]} 14.
Na4 {[%clk 0:03:17.8]} 14... Ne7 {[%clk 0:02:45.1]} 15. Nc5 {[%clk 0:03:19]}
15... Bc8 {[%clk 0:02:46.1]} 16. b4 {[%clk 0:03:12.7]} 16... g5 {[%clk
0:02:42.2]} 17. Rc3 {[%clk 0:03:11.7]} 17... Ng6 {[%clk 0:02:37.7]} 18. Rac1
{[%clk 0:03:01.4]} 18... g4 {[%clk 0:02:36.4]} 19. Ne1 {[%clk 0:03:02.6]} 19...
h5 {[%clk 0:02:36.1]} 20. g3 {[%clk 0:03:03]} 20... Qg5 {[%clk 0:02:25.4]} 21.
Ng2 {[%clk 0:03:00.7]} 21... h4 {[%clk 0:02:25.4]} 22. Nd3 {[%clk 0:02:47.7]}
22... hxg3 {[%clk 0:02:22.8]} 23. fxg3 {[%clk 0:02:46.5]} 23... Kg7 {[%clk
0:02:07.8]} 24. Ngf4 {[%clk 0:02:41.7]} 24... Rh8 {[%clk 0:02:02.9]} 25. Bf1
{[%clk 0:02:35.8]} 25... Rde8 {[%clk 0:02:00.3]} 26. Qd2 {[%clk 0:02:35.2]}
26... Rh6 {[%clk 0:01:31.8]} 27. a3 {[%clk 0:02:09.7]} 27... Nxf4 {[%clk
0:00:40.7]} 28. Nxf4 {[%clk 0:02:02.7]} 28... Reh8 {[%clk 0:00:31.8]} 29. R1c2
{[%clk 0:01:48.3]} 29... Qd8 {[%clk 0:00:21.3]} 30. Qg2 {[%clk 0:01:24.3]} 30...
c6 {[%clk 0:00:18.1]} 31. Rb3 {[%clk 0:01:25.2]} 31... Bf5 {[%clk 0:00:18.8]}
32. Bd3 {[%clk 0:01:19.6]} 32... Bxd3 {[%clk 0:00:14.7]} 33. Rxd3 {[%clk
0:01:21.5]} 33... Bxf4 {[%clk 0:00:09.5]} 34. exf4 {[%clk 0:00:49]} 34... Re6
{[%clk 0:00:09.8]} 35. Re2 {[%clk 0:00:47.5]} 35... Rhe8 {[%clk 0:00:10.3]} 36.
Rdd2 {[%clk 0:00:47.7]} 36... Re4 {[%clk 0:00:09.2]} 37. Kf1 {[%clk 0:00:41.6]}
37... Qf6 {[%clk 0:00:09.2]} 38. h3 {[%clk 0:00:38.5]} 38... Qe6 {[%clk
0:00:04.3]} 39. Rxe4 {[%clk 0:00:24.4]} 39... dxe4 {[%clk 0:00:05.1]} 40. h4
{[%clk 0:00:22.6]} 40... e3 {[%clk 0:00:03.1]} 41. Rc2 {[%clk 0:00:17.6]} 41...
Qb3 {[%clk 0:00:04]} 42. Qe2 {[%clk 0:00:17.4]} 42... Qb1+ {[%clk 0:00:04.6]}
43. Kg2 {[%clk 0:00:18.3]} 43... Qxc2 {[%clk 0:00:06.2]} 44. Qxc2 {[%clk
0:00:16.5]} 44... e2 {[%clk 0:00:08.1]} 45. Qf5 {[%clk 0:00:15.5]} 45... e1=Q
{[%clk 0:00:07.6]} 46. Qxg4+ {[%clk 0:00:15.2]} 46... Kf8 {[%clk 0:00:08.9]} 47.
Qd7 {[%clk 0:00:15.2]} 47... Qe2+ {[%clk 0:00:09.3]} 48. Kh3 {[%clk 0:00:16.3]}
48... Qe6+ {[%clk 0:00:10.3]} 0-1

[Event "*** Titled Tuesday Blitz"]
[Site "Chess.com"]
[Date "2018.01.02"]
[Round "2"]
[White "Aleksey_Sorokin"]
[Black "tango_argentino"]
[Result "1-0"]
[WhiteElo "2778"]
[BlackElo "2517"]
[TimeControl "180+2"]
[EndTime "13:23:18 PST"]
[Termination "Aleksey_Sorokin won by resignation"]

1. d4 {[%clk 0:03:01.9]} 1... Nf6 {[%clk 0:02:59.4]} 2. c4 {[%clk 0:03:02.4]}
2... g6 {[%clk 0:03:00.2]} 3. Nc3 {[%clk 0:03:03.1]} 3... Bg7 {[%clk 0:03:01.4]}
4. e4 {[%clk 0:03:03.9]} 4... d6 {[%clk 0:03:02.8]} 5. Nf3 {[%clk 0:02:59.8]}
5... O-O {[%clk 0:03:03.8]} 6. h3 {[%clk 0:03:01.1]} 6... e5 {[%clk 0:02:59.3]}
7. d5 {[%clk 0:03:01.4]} 7... Nh5 {[%clk 0:03:00.3]} 8. g3 {[%clk 0:03:02.7]}
8... Nd7 {[%clk 0:02:51.5]} 9. Nh2 {[%clk 0:02:58.1]} 9... a5 {[%clk 0:02:49]}
10. Be2 {[%clk 0:02:57.6]} 10... Nhf6 {[%clk 0:02:49.6]} 11. Ng4 {[%clk
0:02:58.8]} 11... Nc5 {[%clk 0:02:38]} 12. Nxf6+ {[%clk 0:02:51.7]} 12... Bxf6
{[%clk 0:02:35.5]} 13. h4 {[%clk 0:02:52.9]} 13... Bg7 {[%clk 0:02:21.2]} 14. h5
{[%clk 0:02:51.5]} 14... f5 {[%clk 0:02:22.4]} 15. hxg6 {[%clk 0:02:51.1]} 15...
hxg6 {[%clk 0:02:23.3]} 16. Be3 {[%clk 0:02:46]} 16... b6 {[%clk 0:02:15.4]} 17.
Qd2 {[%clk 0:02:15.1]} 17... Qf6 {[%clk 0:01:52.1]} 18. O-O-O {[%clk 0:01:44.1]}
18... f4 {[%clk 0:01:51.1]} 19. Bxc5 {[%clk 0:01:42.1]} 19... bxc5 {[%clk
0:01:50.9]} 20. Rdg1 {[%clk 0:01:42.7]} 20... a4 {[%clk 0:01:39.6]} 21. g4
{[%clk 0:01:26.6]} 21... f3 {[%clk 0:01:37.6]} 22. g5 {[%clk 0:01:17.3]} 22...
Qf4 {[%clk 0:01:34.1]} 23. Bd1 {[%clk 0:01:17.9]} 23... a3 {[%clk 0:01:32.4]}
24. b3 {[%clk 0:01:16.2]} 24... Bd7 {[%clk 0:01:25.4]} 25. Rg3 {[%clk
0:01:11.5]} 25... Rf7 {[%clk 0:01:01.4]} 26. Rxf3 {[%clk 0:01:03.1]} 26... Qxf3
{[%clk 0:00:56.6]} 27. Bxf3 {[%clk 0:00:59]} 27... Rxf3 {[%clk 0:00:58.5]} 28.
Rh2 {[%clk 0:00:47.1]} 28... Raf8 {[%clk 0:00:57.9]} 29. Nb1 {[%clk 0:00:47]}
29... R8f4 {[%clk 0:00:55.9]} 30. Qe1 {[%clk 0:00:44]} 30... Rg4 {[%clk
0:00:39.1]} 31. Nxa3 {[%clk 0:00:39.7]} 31... Rxg5 {[%clk 0:00:39.3]} 32. Nb1
{[%clk 0:00:38.8]} 32... Rh5 {[%clk 0:00:38.4]} 33. Rg2 {[%clk 0:00:30.8]} 33...
Kf7 {[%clk 0:00:34.1]} 34. Kb2 {[%clk 0:00:31.5]} 34... g5 {[%clk 0:00:22.7]}
35. Nd2 {[%clk 0:00:31.2]} 35... Rf4 {[%clk 0:00:22.7]} 36. a4 {[%clk
0:00:30.7]} 36... g4 {[%clk 0:00:20.5]} 37. a5 {[%clk 0:00:32]} 37... Rh8 {[%clk
0:00:21.7]} 38. Nf1 {[%clk 0:00:31.5]} 38... Ra8 {[%clk 0:00:22.1]} 39. Ng3
{[%clk 0:00:32]} 39... Bf6 {[%clk 0:00:21.4]} 40. Rg1 {[%clk 0:00:31.4]} 40...
Bg5 {[%clk 0:00:21.2]} 41. Rh1 {[%clk 0:00:31.9]} 41... Kg6 {[%clk 0:00:22.7]}
42. Rh2 {[%clk 0:00:26.3]} 42... Rf3 {[%clk 0:00:23.7]} 43. Kc2 {[%clk
0:00:20.3]} 43... Bf4 {[%clk 0:00:21.3]} 44. Rg2 {[%clk 0:00:20.9]} 44... Bxg3
{[%clk 0:00:21.5]} 45. Rxg3 {[%clk 0:00:22.1]} 45... Rf4 {[%clk 0:00:21.1]} 46.
Re3 {[%clk 0:00:23.1]} 46... Kg5 {[%clk 0:00:22.1]} 47. Kb2 {[%clk 0:00:23.7]}
47... Be8 {[%clk 0:00:23.5]} 48. Qd2 {[%clk 0:00:25]} 48... Bg6 {[%clk
0:00:24.6]} 49. f3 {[%clk 0:00:26.1]} 49... g3 {[%clk 0:00:23.8]} 50. Qg2 {[%clk
0:00:27.2]} 50... Kh4 {[%clk 0:00:24.5]} 51. Re1 {[%clk 0:00:28.5]} 51... Rxa5
{[%clk 0:00:22]} 52. Rh1+ {[%clk 0:00:29.6]} 52... Kg5 {[%clk 0:00:23.4]} 53.
Qxg3+ {[%clk 0:00:31.1]} 53... Kf6 {[%clk 0:00:23.9]} 54. Rh6 {[%clk 0:00:32.3]}
1-0

[Event "*** Titled Tuesday Blitz"]
[Site "Chess.com"]
[Date "2018.01.02"]
[Round "2"]
[White "Opening_Prep"]
[Black "Mikhail_Golubev"]
[Result "1-0"]
[WhiteElo "2262"]
[BlackElo "1908"]
[TimeControl "180+2"]
[EndTime "13:23:20 PST"]
[Termination "Opening_Prep won on time"]

1. d4 {[%clk 0:03:01.9]} 1... Nf6 {[%clk 0:02:18.6]} 2. Bf4 {[%clk 0:03:01.5]}
2... d6 {[%clk 0:02:18.5]} 3. e3 {[%clk 0:02:54.8]} 3... Nbd7 {[%clk 0:02:18.9]}
4. Nf3 {[%clk 0:02:54.1]} 4... e6 {[%clk 0:02:16.5]} 5. h3 {[%clk 0:02:53.1]}
5... Be7 {[%clk 0:02:17.4]} 6. Be2 {[%clk 0:02:52.7]} 6... O-O {[%clk
0:02:18.2]} 7. O-O {[%clk 0:02:53.8]} 7... b6 {[%clk 0:02:18.9]} 8. c4 {[%clk
0:02:54.1]} 8... Bb7 {[%clk 0:02:19.7]} 9. Bh2 {[%clk 0:02:53.3]} 9... Ne4
{[%clk 0:02:16.1]} 10. Nfd2 {[%clk 0:02:50.7]} 10... f5 {[%clk 0:02:15.2]} 11.
Nxe4 {[%clk 0:02:48.9]} 11... fxe4 {[%clk 0:02:15.3]} 12. Bg4 {[%clk 0:02:29.5]}
12... Rf6 {[%clk 0:02:10.1]} 13. Nc3 {[%clk 0:02:27.1]} 13... Rg6 {[%clk
0:01:43.9]} 14. Qc2 {[%clk 0:01:59.2]} 14... d5 {[%clk 0:01:29.1]} 15. Nb5
{[%clk 0:01:24.2]} 15... c6 {[%clk 0:01:23.6]} 16. Nc7 {[%clk 0:01:23.2]} 16...
Nf8 {[%clk 0:00:50.8]} 17. Nxa8 {[%clk 0:01:20.2]} 17... Bxa8 {[%clk 0:00:51.1]}
18. f3 {[%clk 0:01:11.3]} 18... c5 {[%clk 0:00:44.9]} 19. fxe4 {[%clk
0:00:54.5]} 19... dxc4 {[%clk 0:00:45.8]} 20. Rad1 {[%clk 0:00:48.5]} 20... cxd4
{[%clk 0:00:43.7]} 21. exd4 {[%clk 0:00:48.6]} 21... b5 {[%clk 0:00:32.4]} 22.
d5 {[%clk 0:00:32.8]} 22... exd5 {[%clk 0:00:26.2]} 23. exd5 {[%clk 0:00:33.7]}
23... Bxd5 {[%clk 0:00:24.4]} 24. Rf5 {[%clk 0:00:27.7]} 24... Qb6+ {[%clk
0:00:23]} 25. Kh1 {[%clk 0:00:25.4]} 25... Be6 {[%clk 0:00:21.1]} 26. Bg1 {[%clk
0:00:17.2]} 26... Qa6 {[%clk 0:00:16.4]} 27. Rf4 {[%clk 0:00:16.9]} 27... Bxg4
{[%clk 0:00:16.9]} 28. Rxg4 {[%clk 0:00:17.6]} 28... Rxg4 {[%clk 0:00:17.6]} 29.
hxg4 {[%clk 0:00:19]} 29... Qh6+ {[%clk 0:00:16.9]} 30. Bh2 {[%clk 0:00:19.9]}
30... a6 {[%clk 0:00:12.7]} 31. Qf5 {[%clk 0:00:20.4]} 31... Qf6 {[%clk
0:00:10.6]} 32. Be5 {[%clk 0:00:14.5]} 32... Qh6+ {[%clk 0:00:08.7]} 33. Bh2
{[%clk 0:00:13]} 33... Qf6 {[%clk 0:00:09.3]} 34. Be5 {[%clk 0:00:13.9]} 34...
Qh6+ {[%clk 0:00:09.9]} 35. Qh5 {[%clk 0:00:14.2]} 35... Qe3 {[%clk 0:00:07.4]}
36. Rf1 {[%clk 0:00:14.1]} 36... Ng6 {[%clk 0:00:07.9]} 37. Bh2 {[%clk
0:00:13.2]} 37... Qe6 {[%clk 0:00:04.9]} 38. Qf5 {[%clk 0:00:13.4]} 38... Qxf5
{[%clk 0:00:04.9]} 39. gxf5 {[%clk 0:00:15.3]} 39... Nf8 {[%clk 0:00:05.1]} 40.
Be5 {[%clk 0:00:16.2]} 40... Nd7 {[%clk 0:00:05.3]} 41. Bd4 {[%clk 0:00:17.4]}
41... Nc5 {[%clk 0:00:05.2]} 42. Bxc5 {[%clk 0:00:17.3]} 42... Bxc5 {[%clk
0:00:05.2]} 43. Rd1 {[%clk 0:00:18.2]} 43... Kf7 {[%clk 0:00:04.3]} 44. Rd5
{[%clk 0:00:18.7]} 44... Be3 {[%clk 0:00:03.7]} 45. Rd6 {[%clk 0:00:17.8]} 45...
Bc1 {[%clk 0:00:03.4]} 46. b3 {[%clk 0:00:17.6]} 46... c3 {[%clk 0:00:04.3]} 47.
Rxa6 {[%clk 0:00:17.9]} 47... Bd2 {[%clk 0:00:02.9]} 48. Rc6 {[%clk 0:00:18.7]}
1-0